[Event "IIFL Wealth 4th Mumbai GM"]
[Site "Mumbai"]
[Date "2019.01.07"]
[Round "9"]
[White "Gukesh D"]
[Black "Tran, Tuan Minh"]
[Result "1/2-1/2"]
[ECO "A05"]
[WhiteElo "2466"]
[BlackElo "2524"]
[Annotator "RC"]
[PlyCount "43"]
[EventDate "2018.12.30"]
[EventType "swiss"]
[EventCountry "IND"]
[SourceTitle "playchess.com"]
[Source "ChessBase"]
[SourceQuality "1"]
[TimeControl "40/5400+30:1800+30"]

1. Nf3 {[%emt 0:00:56]} Nf6 {[%emt 0:00:00]} 2. g3 {[%emt 0:00:28]} b6 {[%emt 0:00:03]} 3. Bg2 {[%emt 0:00:07]} Bb7 {[%emt 0:00:07]} 4. O-O {[%emt 0:00:07]} c5 {[%emt 0:00:38]} 5. c4 {[%emt 0:00:52]} g6 {[%emt 0:00:23]} 6. b3 {[%emt 0:03:15]} Bg7 {[%emt 0:00:20]} 7. Bb2 {[%emt 0:00:10]} O-O {[%emt 0:00:09]} 8. Nc3 {[%emt 0:02:14]} d5 {[%emt 0:03:30]} 9. Nxd5 {[%emt 0:01:19]} Nxd5 {[%emt 0:01:07]} 10. Bxg7 {[%emt 0:00:06]} Kxg7 {[%emt 0:00:22]} 11. cxd5 {[%emt 0:00:30]} Qxd5 {[%emt 0:01:21]} 12. d4 {[%emt 0:00:41]} cxd4 {[%emt 0:07:39]} 13. Qxd4+ {[%emt 0:00:34]} Qxd4 {[%emt 0:00:07]} 14. Nxd4 {[%emt 0:00:05]} Bxg2 {[%emt 0:00:07]} 15. Kxg2 {[%emt 0:00:03]} Na6 {[%emt 0:00:33]} 16. Rfc1 {[%emt 0:11:24]} Rfd8 {[%emt 0:03:14]} 17. Nc6 Re8 {[%emt 0:00:30]} 18. Nd4 Red8 {[%emt 0:00:30]} 19. Nc6 Re8 {[%emt 0:00:30]} 20. Nd4 Red8 {[%emt 0:00:30]} 21. Nc6 Re8 {[%emt 0:00:30]} 22. Nd4 1/2-1/2

[Event "IIFL Wealth 4th Mumbai GM"]
[Site "Mumbai"]
[Date "2019.01.07"]
[Round "9"]
[White "Sardana, Rishi"]
[Black "Muthaiah AL"]
[Result "1-0"]
[ECO "B52"]
[WhiteElo "2398"]
[BlackElo "2408"]
[Annotator "RC"]
[PlyCount "143"]
[EventDate "2018.12.30"]
[EventType "swiss"]
[EventCountry "IND"]
[SourceTitle "playchess.com"]
[Source "ChessBase"]
[SourceQuality "1"]
[TimeControl "40/5400+30:1800+30"]

1. e4 {[%emt 0:00:00]} c5 {[%emt 0:09:23]} 2. Nf3 {[%emt 0:00:00]} d6 {[%emt 0:00:25]} 3. Bb5+ {[%emt 0:00:00]} Bd7 {[%emt 0:00:07]} 4. Bxd7+ {[%emt 0:00:02]} Qxd7 {[%emt 0:00:07]} 5. c4 {[%emt 0:00:07]} g6 {[%emt 0:00:17]} 6. Nc3 {[%emt 0:00:08]} Bg7 {[%emt 0:00:06]} 7. d4 {[%emt 0:00:06]} cxd4 {[%emt 0:00:06]} 8. Nxd4 {[%emt 0:00:06]} Nc6 {[%emt 0:00:09]} 9. Be3 {[%emt 0:00:07]} Nf6 {[%emt 0:00:06]} 10. f3 {[%emt 0:00:09]} O-O {[%emt 0:01:47]} 11. b3 {[%emt 0:00:46]} e6 {[%emt 0:00:16]} 12. Rc1 {[%emt 0:00:41]} Rfd8 {[%emt 0:02:42]} 13. O-O {[%emt 0:00:59]} d5 {[%emt 0:01:22]} 14. cxd5 {[%emt 0:26:18]} exd5 {[%emt 0:02:11]} 15. Nxc6 {[%emt 0:00:45]} bxc6 {[%emt 0:00:38]} 16. e5 {[%emt 0:00:40]} Ne8 {[%emt 0:01:13]} 17. Bd4 {[%emt 0:05:03]} Nc7 {[%emt 0:12:02]} 18. Na4 {[%emt 0:01:58]} Ne6 {[%emt 0:00:15]} 19. f4 {[%emt 0:02:54]} Bh6 {[%emt 0:24:29]} 20. g3 {[%emt 0:04:22]} Rac8 {[%emt 0:01:25]} 21. Qd2 {[%emt 0:07:58]} Qe7 {[%emt 0:04:36]} 22. Nc5 {[%emt 0:06:03]} Nxd4 {[%emt 0:01:14]} 23. Qxd4 {[%emt 0:00:07]} Bg7 {[%emt 0:00:17]} 24. Rfe1 {[%emt 0:08:09]} f6 {[%emt 0:01:15]} 25. Rc2 {[%emt 0:15:19]} fxe5 {[%emt 0:08:43]} 26. fxe5 {[%emt 0:00:02]} Re8 {[%emt 0:04:18]} 27. Nd3 {[%emt 0:00:07]} Qc7 {[%emt 0:07:42]} 28. Kg2 {[%emt 0:05:37]} Re6 {[%emt 0:06:26]} 29. b4 {[%emt 0:06:12]} Qb8 {[%emt 0:02:51]} 30. a4 {[%emt 0:01:44]} Rce8 {[%emt 0:06:14]} 31. Rce2 {[%emt 0:04:47]} Qb6 {[%emt 0:00:55]} 32. Qxb6 {[%emt 0:01:45]} axb6 {[%emt 0:00:01]} 33. b5 {[%emt 0:02:07]} cxb5 {[%emt 0:00:23]} 34. axb5 {[%emt 0:00:02]} Kf7 {[%emt 0:00:47]} 35. Rf2+ {[%emt 0:00:23]} Ke7 {[%emt 0:00:26]} 36. Ra2 {[%emt 0:01:38]} Kf8 {[%emt 0:00:43]} 37. Rf2+ {[%emt 0:00:02]} Ke7 {[%emt 0:00:18]} 38. Nb4 {[%emt 0:00:34]} Rxe5 {[%emt 0:00:25]} 39. Nc6+ {[%emt 0:00:16]} Kd6 {[%emt 0:00:06]} 40. Nxe5 {[%emt 0:00:00]} Bxe5 {[%emt 0:00:00]} 41. Rf7 {[%emt 0:09:06]} h5 42. Rc1 Bd4 {[%emt 0:13:41]} 43. Rc6+ {[%emt 0:03:54]} Ke5 {[%emt 0:00:01]} 44. Rxg6 {[%emt 0:02:11]} Ke4 {[%emt 0:00:40]} 45. Rf4+ {[%emt 0:04:17]} Kd3 {[%emt 0:00:52]} 46. Rg5 {[%emt 0:00:43]} Rd8 {[%emt 0:01:56]} 47. Rff5 {[%emt 0:00:35]} Kc4 {[%emt 0:00:17]} 48. Rxh5 {[%emt 0:01:13]} Bc5 {[%emt 0:03:09]} 49. Kf3 {[%emt 0:01:11]} d4 {[%emt 0:01:44]} 50. Ke4 {[%emt 0:01:24]} Ra8 {[%emt 0:02:17]} 51. Rd5 {[%emt 0:03:37]} Ra2 {[%emt 0:07:17]} 52. Rd7 {[%emt 0:00:19]} Re2+ {[%emt 0:01:03]} 53. Kf3 {[%emt 0:00:17]} d3 {[%emt 0:00:48]} 54. Rhd5 {[%emt 0:00:34]} Rf2+ {[%emt 0:00:20]} 55. Ke4 {[%emt 0:01:25]} Rxh2 {[%emt 0:01:30]} 56. Rxd3 {[%emt 0:00:20]} Kxb5 {[%emt 0:01:25]} 57. g4 {[%emt 0:00:55]} Kc4 {[%emt 0:00:55]} 58. Rd2 {[%emt 0:01:01]} Rh1 {[%emt 0:00:59]} 59. Rc2+ {[%emt 0:00:13]} Kb3 {[%emt 0:00:17]} 60. Rdd2 {[%emt 0:01:32]} Re1+ {[%emt 0:02:29]} 61. Re2 {[%emt 0:00:17]} Rd1 {[%emt 0:00:24]} 62. Rcd2 {[%emt 0:01:19]} Rg1 {[%emt 0:00:30]} 63. Rg2 {[%emt 0:00:20]} Re1+ {[%emt 0:00:04]} 64. Rde2 {[%emt 0:00:10]} Rd1 {[%emt 0:00:07]} 65. g5 {[%emt 0:00:44]} Rd8 {[%emt 0:00:59]} 66. g6 {[%emt 0:01:02]} Rg8 {[%emt 0:00:06]} 67. Ke5 {[%emt 0:01:29]} b5 {[%emt 0:00:22]} 68. Kd5 {[%emt 0:00:48]} Bb4 {[%emt 0:01:07]} 69. Kc6 {[%emt 0:00:18]} Ka4 {[%emt 0:00:59]} 70. Re4 {[%emt 0:01:47]} Rc8+ {[%emt 0:01:11]} 71. Kd7 {[%emt 0:00:58]} Rg8 {[%emt 0:00:08]} 72. Rgg4 {[%emt 0:00:15]} 1-0

[Event "IIFL Wealth 4th Mumbai GM"]
[Site "Mumbai"]
[Date "2019.01.07"]
[Round "9"]
[White "Ameir, Moheb"]
[Black "Thrish Karthik"]
[Result "0-1"]
[ECO "C41"]
[WhiteElo "2327"]
[BlackElo "2168"]
[Annotator "NA"]
[PlyCount "52"]
[EventDate "2018.12.30"]
[EventType "swiss"]
[EventCountry "IND"]
[SourceTitle "playchess.com"]
[Source "ChessBase"]
[SourceQuality "1"]
[TimeControl "40/5400+30:1800+30"]

1. e4 {[%emt 0:00:00]} e5 {[%emt 0:00:00]} 2. Nf3 {[%emt 0:00:00]} d6 {[%emt 0:00:00]} 3. d4 {[%emt 0:00:31]} exd4 {[%emt 0:00:00]} 4. Nxd4 {[%emt 0:03:16]} Nf6 {[%emt 0:00:50]} 5. Nc3 {[%emt 0:00:19]} Be7 {[%emt 0:00:05]} 6. Be2 {[%emt 0:03:51]} O-O {[%emt 0:00:08]} 7. O-O {[%emt 0:00:17]} Re8 {[%emt 0:00:06]} 8. f4 {[%emt 0:00:59]} Bf8 {[%emt 0:02:04]} 9. Bf3 {[%emt 0:00:13]} c6 {[%emt 0:04:12]} 10. Re1 {[%emt 0:04:16]} Na6 {[%emt 0:07:24]} 11. Be3 {[%emt 0:01:06]} Nc7 {[%emt 0:04:31]} 12. a4 {[%emt 0:13:11]} d5 {[%emt 0:06:47]} 13. e5 {[%emt 0:02:01]} Nd7 {[%emt 0:01:42]} 14. Bf2 {[%emt 0:04:10]} g6 {[%emt 0:05:24]} 15. Qd2 {[%emt 0:08:08]} Bh6 {[%emt 0:00:58]} 16. Be3 {[%emt 0:11:15]} c5 {[%emt 0:01:40]} 17. Nxd5 {[%emt 0:00:49]} cxd4 {[%emt 0:06:40]} 18. Qxd4 {[%emt 0:00:23]} Nxd5 {[%emt 0:03:53]} 19. Qxd5 {[%emt 0:03:41]} Nb6 {[%emt 0:10:58]} 20. Qxd8 {[%emt 0:06:11]} Rxd8 {[%emt 0:00:09]} 21. g3 {[%emt 0:02:57]} Nc4 {[%emt 0:07:14]} 22. Bc1 {[%emt 0:03:04]} Bf8 {[%emt 0:09:26]} 23. b3 {[%emt 0:01:01]} Nd2 {[%emt 0:10:15]} 24. Bxd2 {[%emt 0:01:50]} Rxd2 {[%emt 0:00:08]} 25. Rad1 {[%emt 0:00:45]} Bc5+ {[%emt 0:01:22]} 26. Kh1 {[%emt 0:00:10]} Rf2 {[%emt 0:03:27]} 0-1

[Event "IIFL Wealth 4th Mumbai GM"]
[Site "Mumbai"]
[Date "2019.01.07"]
[Round "9"]
[White "Pranav, V."]
[Black "Snehal, Bhosale"]
[Result "1-0"]
[ECO "A45"]
[WhiteElo "2318"]
[BlackElo "2135"]
[Annotator "NA"]
[PlyCount "69"]
[EventDate "2018.12.30"]
[EventType "swiss"]
[EventCountry "IND"]
[SourceTitle "playchess.com"]
[Source "ChessBase"]
[SourceQuality "1"]
[TimeControl "40/5400+30:1800+30"]

1. d4 {[%emt 0:00:00]} Nf6 {[%emt 0:00:08]} 2. Nc3 {[%emt 0:00:00]} d5 {[%emt 0:00:55]} 3. Bf4 {[%emt 0:00:00]} g6 {[%emt 0:01:06]} 4. e3 {[%emt 0:00:07]} Bg7 {[%emt 0:00:24]} 5. h4 {[%emt 0:00:27]} c6 {[%emt 0:01:25]} 6. Be2 {[%emt 0:00:22]} h5 {[%emt 0:01:26]} 7. Nf3 {[%emt 0:02:12]} O-O {[%emt 0:08:46]} 8. Bd3 {[%emt 0:02:46]} Ng4 {[%emt 0:08:22]} 9. Ne5 {[%emt 0:02:06]} Nxe5 {[%emt 0:02:03]} 10. Bxe5 {[%emt 0:00:18]} Bxe5 {[%emt 0:09:05]} 11. dxe5 {[%emt 0:00:18]} Qb6 $15 {[%emt 0:02:36]} 12. Qd2 {[%emt 0:03:52]} Nd7 {[%emt 0:16:11]} 13. f4 {[%emt 0:02:18]} Nc5 {[%emt 0:01:10]} 14. O-O-O {[%emt 0:07:30]} Nxd3+ {[%emt 0:01:51]} 15. Qxd3 {[%emt 0:00:21]} Bg4 {[%emt 0:00:14]} 16. Rd2 {[%emt 0:00:36]} Rfd8 {[%emt 0:00:54]} 17. Nd1 {[%emt 0:02:42]} c5 {[%emt 0:04:49]} 18. Nf2 {[%emt 0:01:09]} Bf5 {[%emt 0:01:16]} 19. Qb3 {[%emt 0:06:53]} Qxb3 {[%emt 0:02:20]} 20. axb3 {[%emt 0:02:28]} a5 {[%emt 0:02:02]} 21. Rhd1 {[%emt 0:00:59]} Be6 {[%emt 0:00:22]} 22. c4 {[%emt 0:11:39]} a4 {[%emt 0:05:50]} 23. Kc2 {[%emt 0:01:18]} axb3+ {[%emt 0:08:53]} 24. Kc3 {[%emt 0:00:18]} d4+ {[%emt 0:01:41]} 25. exd4 {[%emt 0:00:14]} cxd4+ {[%emt 0:00:04]} 26. Rxd4 {[%emt 0:00:07]} Rxd4 {[%emt 0:05:28]} 27. Rxd4 {[%emt 0:00:06]} Ra1 {[%emt 0:00:08]} 28. Nd3 {[%emt 0:01:21]} b6 {[%emt 0:01:30]} 29. Kb4 {[%emt 0:04:19]} Rd1 {[%emt 0:03:17]} 30. Kxb3 {[%emt 0:02:26]} Rd2 {[%emt 0:03:18]} 31. Kc3 {[%emt 0:00:38]} Rxg2 {[%emt 0:00:05]} 32. b4 {[%emt 0:00:05]} Rh2 {[%emt 0:01:49]} 33. c5 {[%emt 0:01:25]} bxc5 {[%emt 0:00:16]} 34. bxc5 {[%emt 0:00:41]} Rxh4 {[%emt 0:03:50]} 35. c6 {[%emt 0:00:07]} 1-0

[Event "IIFL Wealth 4th Mumbai GM"]
[Site "Mumbai"]
[Date "2019.01.07"]
[Round "9"]
[White "Sarwat, Walaa"]
[Black "Kishor, Shazzad"]
[Result "1-0"]
[ECO "B53"]
[WhiteElo "2276"]
[BlackElo "1730"]
[Annotator "NA"]
[PlyCount "71"]
[EventDate "2018.12.30"]
[EventType "swiss"]
[EventCountry "IND"]
[SourceTitle "playchess.com"]
[Source "ChessBase"]
[SourceQuality "1"]
[TimeControl "40/5400+30:1800+30"]

1. e4 {[%emt 0:00:00]} c5 {[%emt 0:07:22]} 2. Nf3 {[%emt 0:00:36]} d6 {[%emt 0:00:01]} 3. d4 {[%emt 0:00:56]} cxd4 {[%emt 0:00:03]} 4. Qxd4 {[%emt 0:00:34]} Nc6 {[%emt 0:00:34]} 5. Bb5 {[%emt 0:00:27]} Bd7 {[%emt 0:02:09]} 6. Bxc6 {[%emt 0:00:21]} bxc6 {[%emt 0:00:44]} 7. c4 {[%emt 0:00:13]} c5 {[%emt 0:04:29]} 8. Qd3 {[%emt 0:00:34]} Nf6 {[%emt 0:11:44]} 9. Nc3 {[%emt 0:01:01]} g6 {[%emt 0:01:10]} 10. O-O {[%emt 0:04:44]} Bg7 {[%emt 0:00:25]} 11. Re1 {[%emt 0:03:21]} O-O {[%emt 0:00:31]} 12. h3 {[%emt 0:02:02]} Qc7 {[%emt 0:08:49]} 13. Bg5 {[%emt 0:01:26]} Bc6 {[%emt 0:02:36]} 14. Rad1 {[%emt 0:04:35]} Rab8 {[%emt 0:01:59]} 15. b3 {[%emt 0:00:39]} Rfd8 {[%emt 0:01:17]} 16. Nd5 {[%emt 0:00:39]} Bxd5 {[%emt 0:01:15]} 17. exd5 {[%emt 0:00:27]} Rd7 {[%emt 0:03:39]} 18. Qe3 {[%emt 0:02:54]} a5 {[%emt 0:00:03]} 19. Bh6 {[%emt 0:03:58]} a4 {[%emt 0:06:13]} 20. Bxg7 {[%emt 0:01:15]} Kxg7 {[%emt 0:00:04]} 21. Qc3 {[%emt 0:00:32]} axb3 {[%emt 0:00:37]} 22. axb3 {[%emt 0:00:21]} Qb7 {[%emt 0:00:05]} 23. Re3 {[%emt 0:00:26]} Qb4 {[%emt 0:03:10]} 24. Qb2 {[%emt 0:01:25]} Kg8 {[%emt 0:03:30]} 25. Rde1 {[%emt 0:01:29]} Rbb7 {[%emt 0:00:50]} 26. g4 {[%emt 0:01:08]} Ra7 {[%emt 0:04:06]} 27. g5 {[%emt 0:06:54]} Nh5 {[%emt 0:00:49]} 28. Nh2 {[%emt 0:00:21]} f5 {[%emt 0:08:22]} 29. gxf6 {[%emt 0:01:22]} Nxf6 {[%emt 0:01:01]} 30. Nf3 {[%emt 0:00:49]} Rdb7 {[%emt 0:10:12]} 31. Ng5 {[%emt 0:02:37]} Qa3 {[%emt 0:04:50]} 32. Qc3 {[%emt 0:06:09]} Qb4 {[%emt 0:00:01]} 33. Qc2 {[%emt 0:02:13]} Qa5 {[%emt 0:07:12]} 34. Qe2 {[%emt 0:02:27]} Qa2 {[%emt 0:02:39]} 35. Qf3 {[%emt 0:00:37]} Qd2 {[%emt 0:02:01]} 36. h4 {[%emt 0:01:36]} 1-0

[Event "IIFL Wealth 4th Mumbai GM"]
[Site "Mumbai"]
[Date "2019.01.07"]
[Round "9"]
[White "Mehdi Hasan Parag"]
[Black "Lama, Milan"]
[Result "1/2-1/2"]
[ECO "B38"]
[WhiteElo "2218"]
[BlackElo "1897"]
[Annotator "NA"]
[PlyCount "73"]
[EventDate "2018.12.30"]
[EventType "swiss"]
[EventCountry "IND"]
[SourceTitle "playchess.com"]
[Source "ChessBase"]
[SourceQuality "1"]
[TimeControl "40/5400+30:1800+30"]

1. e4 {[%emt 0:00:00]} c5 {[%emt 0:04:07]} 2. Nf3 {[%emt 0:01:18]} g6 {[%emt 0:00:07]} 3. d4 {[%emt 0:00:16]} cxd4 {[%emt 0:00:09]} 4. Nxd4 {[%emt 0:00:02]} Bg7 {[%emt 0:00:07]} 5. c4 {[%emt 0:00:06]} Nc6 {[%emt 0:00:11]} 6. Be3 {[%emt 0:00:06]} Nh6 {[%emt 0:00:23]} 7. Nc3 {[%emt 0:01:04]} O-O {[%emt 0:00:13]} 8. Be2 {[%emt 0:00:33]} d6 {[%emt 0:00:18]} 9. O-O {[%emt 0:01:11]} f5 {[%emt 0:00:08]} 10. exf5 {[%emt 0:01:09]} Nxf5 {[%emt 0:00:07]} 11. Nxf5 {[%emt 0:00:58]} Bxf5 {[%emt 0:00:06]} 12. Qd2 {[%emt 0:02:58]} Qa5 {[%emt 0:08:14]} 13. Rac1 {[%emt 0:02:28]} Rf7 {[%emt 0:00:52]} 14. Bf3 {[%emt 0:01:05]} Ne5 {[%emt 0:02:57]} 15. Be2 {[%emt 0:00:19]} Nc6 {[%emt 0:04:07]} 16. b3 {[%emt 0:01:10]} Raf8 {[%emt 0:01:04]} 17. Bf3 {[%emt 0:01:14]} Bc8 {[%emt 0:08:40]} 18. Bd5 {[%emt 0:04:46]} e6 {[%emt 0:00:33]} 19. Be4 {[%emt 0:00:28]} Qh5 {[%emt 0:13:13]} 20. Qd1 {[%emt 0:08:32]} Qh4 {[%emt 0:07:39]} 21. Bxc6 {[%emt 0:05:07]} bxc6 {[%emt 0:00:30]} 22. Qxd6 {[%emt 0:00:29]} Rf5 {[%emt 0:11:54]} 23. Qg3 {[%emt 0:03:24]} Qe7 {[%emt 0:00:43]} 24. Ne4 {[%emt 0:01:15]} Be5 {[%emt 0:07:52]} 25. f4 {[%emt 0:00:20]} Bg7 {[%emt 0:02:36]} 26. Rcd1 {[%emt 0:01:36]} Rd8 {[%emt 0:01:53]} 27. Qe1 {[%emt 0:03:20]} c5 {[%emt 0:02:04]} 28. Rxd8+ {[%emt 0:03:37]} Qxd8 {[%emt 0:00:06]} 29. Nxc5 {[%emt 0:00:58]} Qc7 {[%emt 0:01:24]} 30. b4 {[%emt 0:01:35]} a5 {[%emt 0:01:20]} 31. a3 {[%emt 0:01:02]} Bb2 {[%emt 0:01:42]} 32. Ne4 {[%emt 0:02:23]} Bb7 {[%emt 0:02:10]} 33. Ng3 {[%emt 0:00:37]} Rf7 {[%emt 0:00:48]} 34. Qe2 {[%emt 0:10:01]} Bxa3 {[%emt 0:01:45]} 35. b5 {[%emt 0:00:02]} Bc5 {[%emt 0:02:51]} 36. Bxc5 {[%emt 0:00:21]} Qxc5+ {[%emt 0:00:06]} 37. Kh1 {[%emt 0:00:14]} 1/2-1/2

[Event "IIFL Wealth 4th Mumbai GM"]
[Site "Mumbai"]
[Date "2019.01.07"]
[Round "9"]
[White "Samant Aditya S"]
[Black "Vatsal Singhania"]
[Result "0-1"]
[ECO "B41"]
[WhiteElo "2205"]
[BlackElo "2130"]
[Annotator "NA"]
[PlyCount "67"]
[EventDate "2018.12.30"]
[EventType "swiss"]
[EventCountry "IND"]
[SourceTitle "playchess.com"]
[Source "ChessBase"]
[SourceQuality "1"]
[TimeControl "40/5400+30:1800+30"]

1. e4 c5 2. Nf3 e6 3. d4 cxd4 4. Nxd4 a6 5. c4 Nf6 6. Nc3 Qc7 7. a3 b6 8. Be3 Bb7 9. f3 d6 10. Be2 Be7 11. O-O O-O 12. Qd2 Nbd7 13. b4 Rac8 14. Rac1 Qb8 15. Rc2 Rfe8 16. Rb1 Bd8 17. Kh1 Bc7 18. Bg1 h5 19. Na4 h4 20. Bf2 h3 21. g3 Qa8 22. Kg1 Ne5 23. Bf1 b5 24. cxb5 axb5 25. Bxb5 Bxe4 26. fxe4 Nxe4 27. Qc1 Nc3 28. Be3 Nf3+ 29. Nxf3 Nxb5 30. Nc3 Nxc3 31. Rxc3 Qxf3 32. Qf1 Qb7 33. Rbc1 Bb6 34. Bxb6 0-1

[Event "IIFL Wealth 4th Mumbai GM"]
[Site "Mumbai"]
[Date "2019.01.07"]
[Round "9"]
[White "Senthil Maran K"]
[Black "Mahindrakar Indrajeet"]
[Result "1/2-1/2"]
[ECO "D02"]
[WhiteElo "2197"]
[BlackElo "2106"]
[Annotator "NA"]
[PlyCount "52"]
[EventDate "2018.12.30"]
[EventType "swiss"]
[EventCountry "IND"]
[SourceTitle "playchess.com"]
[Source "ChessBase"]
[SourceQuality "1"]
[TimeControl "40/5400+30:1800+30"]

1. d4 d5 2. Nf3 c5 3. g3 Nc6 4. Bg2 Nf6 5. O-O e6 6. c4 Be7 7. dxc5 Bxc5 8. a3 O-O 9. b4 Be7 10. Nbd2 {[%emt 0:21:13]} a5 {[%emt 0:23:25]} 11. b5 Nb8 12. Bb2 Nbd7 13. cxd5 exd5 14. Rc1 Re8 15. Nb3 Nb6 16. Ne5 {[%emt 0:19:52]} Bd6 {[%emt 0:10:56]} 17. Nd3 {[%emt 0:03:47]} Bg4 {[%emt 0:05:10]} 18. Re1 {[%emt 0:01:00]} Qe7 {[%emt 0:03:09]} 19. Bd4 {[%emt 0:05:11]} Nbd7 {[%emt 0:08:18]} 20. Nbc5 {[%emt 0:03:59]} Rab8 21. Nxd7 Bxd7 22. Qb3 Be6 23. Bc5 Ne4 {[%emt 0:24:57]} 24. Bxd6 {[%emt 0:16:03]} Qxd6 {[%emt 0:00:16]} 25. Qa4 {[%emt 0:02:43]} b6 {[%emt 0:04:13]} 26. Rc6 {[%emt 0:02:35]} Qd8 {[%emt 0:03:51]} 1/2-1/2

[Event "IIFL Wealth 4th Mumbai GM"]
[Site "Mumbai"]
[Date "2019.01.07"]
[Round "9"]
[White "Subrota, Biswas"]
[Black "Siva Mahadevan"]
[Result "1/2-1/2"]
[ECO "B88"]
[WhiteElo "2171"]
[BlackElo "2333"]
[Annotator "NA"]
[PlyCount "74"]
[EventDate "2018.12.30"]
[EventType "swiss"]
[EventCountry "IND"]
[SourceTitle "playchess.com"]
[Source "ChessBase"]
[SourceQuality "1"]
[TimeControl "40/5400+30:1800+30"]

1. e4 {[%emt 0:04:10]} c5 {[%emt 0:00:00]} 2. Nf3 {[%emt 0:00:04]} d6 {[%emt 0:00:00]} 3. Nc3 {[%emt 0:00:26]} Nf6 {[%emt 0:00:00]} 4. d4 {[%emt 0:00:08]} cxd4 {[%emt 0:00:03]} 5. Nxd4 {[%emt 0:00:15]} Nc6 {[%emt 0:00:09]} 6. Bc4 {[%emt 0:00:32]} e6 {[%emt 0:00:07]} 7. Bb3 {[%emt 0:00:33]} a6 {[%emt 0:00:06]} 8. Be3 {[%emt 0:04:12]} Qc7 {[%emt 0:00:12]} 9. f4 {[%emt 0:02:15]} Na5 {[%emt 0:02:03]} 10. Qf3 {[%emt 0:07:26]} b5 {[%emt 0:02:39]} 11. a3 {[%emt 0:10:10]} Be7 {[%emt 0:05:37]} 12. O-O {[%emt 0:01:01]} O-O {[%emt 0:00:54]} 13. Ba2 {[%emt 0:04:10]} Bb7 {[%emt 0:07:06]} 14. Bxe6 {[%emt 0:03:27]} fxe6 {[%emt 0:00:12]} 15. Nxe6 {[%emt 0:00:03]} Qc4 {[%emt 0:00:18]} 16. Nxf8 {[%emt 0:00:21]} Rxf8 {[%emt 0:01:25]} 17. Bb6 {[%emt 0:02:22]} Bd8 {[%emt 0:01:03]} 18. Bxd8 {[%emt 0:08:12]} Rxd8 {[%emt 0:00:03]} 19. Rfe1 {[%emt 0:14:46]} Re8 {[%emt 0:04:05]} 20. b4 {[%emt 0:03:07]} Qd4+ {[%emt 0:04:51]} 21. Qe3 {[%emt 0:08:58]} Qxe3+ {[%emt 0:00:11]} 22. Rxe3 {[%emt 0:00:01]} Nc4 {[%emt 0:00:10]} 23. Re2 {[%emt 0:00:46]} Nxe4 {[%emt 0:00:24]} 24. a4 {[%emt 0:01:10]} Kf7 {[%emt 0:02:16]} 25. Rae1 {[%emt 0:03:16]} d5 {[%emt 0:01:13]} 26. axb5 {[%emt 0:01:02]} axb5 {[%emt 0:00:03]} 27. Nxb5 {[%emt 0:00:39]} Ra8 {[%emt 0:00:22]} 28. Nd4 {[%emt 0:02:51]} Ra4 {[%emt 0:02:25]} 29. b5 {[%emt 0:00:26]} Ncd6 {[%emt 0:04:23]} 30. c3 {[%emt 0:03:28]} Rc4 {[%emt 0:02:29]} 31. Re3 {[%emt 0:02:19]} Rxc3 {[%emt 0:11:34]} 32. Rxc3 {[%emt 0:00:04]} Nxc3 {[%emt 0:00:03]} 33. Rc1 {[%emt 0:04:31]} Ndxb5 {[%emt 0:03:06]} 34. Nxb5 {[%emt 0:00:03]} Nxb5 {[%emt 0:05:47]} 35. Rc5 {[%emt 0:00:16]} Nd6 {[%emt 0:00:02]} 36. Rc7+ {[%emt 0:00:07]} Ke6 {[%emt 0:01:48]} 37. Rxg7 {[%emt 0:00:42]} d4 {[%emt 0:00:06]} 1/2-1/2

[Event "IIFL Wealth 4th Mumbai GM"]
[Site "Mumbai"]
[Date "2019.01.07"]
[Round "9"]
[White "Vantika Agrawal"]
[Black "Tran, Minh Thang"]
[Result "0-1"]
[ECO "E19"]
[WhiteElo "2143"]
[BlackElo "2342"]
[Annotator "NA"]
[PlyCount "80"]
[EventDate "2018.12.30"]
[EventType "swiss"]
[EventCountry "IND"]
[SourceTitle "playchess.com"]
[Source "ChessBase"]
[SourceQuality "1"]
[TimeControl "40/5400+30:1800+30"]

1. d4 {[%emt 0:01:27]} Nf6 {[%emt 0:00:00]} 2. Nf3 {[%emt 0:01:20]} e6 {[%emt 0:00:26]} 3. c4 {[%emt 0:00:12]} b6 {[%emt 0:00:42]} 4. g3 {[%emt 0:00:37]} Bb7 {[%emt 0:00:12]} 5. Bg2 {[%emt 0:00:55]} Be7 {[%emt 0:00:09]} 6. O-O {[%emt 0:00:08]} O-O {[%emt 0:00:06]} 7. Nc3 {[%emt 0:00:51]} Ne4 {[%emt 0:00:08]} 8. Qc2 {[%emt 0:00:41]} Nxc3 {[%emt 0:00:37]} 9. Qxc3 {[%emt 0:04:08]} Be4 {[%emt 0:00:22]} 10. Rd1 {[%emt 0:00:35]} Bf6 {[%emt 0:00:18]} 11. Bf4 {[%emt 0:12:42]} d6 {[%emt 0:04:19]} 12. Rac1 {[%emt 0:25:22]} Nd7 {[%emt 0:00:55]} 13. Qe3 {[%emt 0:10:21]} Bb7 {[%emt 0:02:50]} 14. Qd3 {[%emt 0:01:38]} Re8 {[%emt 0:02:29]} 15. Ng5 {[%emt 0:07:14]} Bxg5 {[%emt 0:01:25]} 16. Bxg5 {[%emt 0:09:09]} Qc8 {[%emt 0:00:52]} 17. e4 {[%emt 0:04:04]} e5 {[%emt 0:01:57]} 18. f3 {[%emt 0:14:07]} exd4 {[%emt 0:02:23]} 19. Qxd4 {[%emt 0:00:09]} Ne5 {[%emt 0:00:19]} 20. Bd2 {[%emt 0:01:33]} f5 {[%emt 0:00:15]} 21. f4 {[%emt 0:02:04]} Ng4 {[%emt 0:00:42]} 22. Bc3 {[%emt 0:00:17]} Re7 {[%emt 0:00:29]} 23. Re1 {[%emt 0:00:53]} Rf7 {[%emt 0:07:23]} 24. exf5 {[%emt 0:00:46]} Bxg2 {[%emt 0:02:19]} 25. Kxg2 {[%emt 0:00:05]} Qd7 {[%emt 0:00:24]} 26. h3 {[%emt 0:01:00]} Nf6 {[%emt 0:00:07]} 27. Re6 {[%emt 0:00:29]} Raf8 28. Rce1 {[%emt 0:00:30]} Qa4 {[%emt 0:06:08]} 29. g4 {[%emt 0:00:36]} Qxa2 {[%emt 0:00:21]} 30. Re7 {[%emt 0:00:34]} Qa4 {[%emt 0:01:03]} 31. Rxf7 {[%emt 0:00:25]} Rxf7 {[%emt 0:00:01]} 32. Re2 {[%emt 0:00:33]} Qc6+ {[%emt 0:00:19]} 33. Kg3 {[%emt 0:00:32]} Qd7 {[%emt 0:02:30]} 34. Qe3 {[%emt 0:00:26]} Kf8 {[%emt 0:00:25]} 35. Bxf6 {[%emt 0:00:29]} Rxf6 {[%emt 0:01:04]} 36. Qe4 {[%emt 0:00:25]} c6 {[%emt 0:00:14]} 37. Qd4 {[%emt 0:00:26]} d5 {[%emt 0:02:12]} 38. cxd5 {[%emt 0:00:41]} Qxd5 {[%emt 0:00:02]} 39. Qe3 {[%emt 0:00:30]} Qd7 {[%emt 0:00:01]} 40. Qe5 {[%emt 0:00:00]} Rd6 {[%emt 0:00:00]} 0-1